lending/lending_fUSD_20250408
["ID","MTS","AMOUNT","RATE_DAILY","PERIOD"]
[357542323,1744131374041,-500.0,0.00061095,120]
[357542324,1744131374068,-500.0,0.00061095,120]
[357542325,1744131374096,-500.0,0.00061095,120]
[357542326,1744131374123,-500.0,0.00061095,120]
[357542327,1744131374148,-500.0,0.00061095,120]
[357542328,1744131374176,-500.0,0.00061095,120]
[357542329,1744131374207,-500.0,0.00061095,120]
[357542330,1744131374232,-500.0,0.00061643,120]
[357542331,1744131374258,-500.0,0.00063013,120]
[357542332,1744131374336,500.0,0.00061095,120]
[357542333,1744131374598,500.0,0.00061095,120]
[357542334,1744131375354,500.0,0.00061095,120]
[357542335,1744131376105,500.0,0.00061095,120]
[357542336,1744131376711,500.0,0.00061095,120]
[357542337,1744131377464,500.0,0.00061095,120]
[357542338,1744131378157,500.0,0.00061095,120]
[357542339,1744131378970,500.0,0.00061095,120]
[357542340,1744131379683,500.0,0.00061095,120]
[357542341,1744131380372,500.0,0.00061095,120]
[357542342,1744131380936,500.0,0.00061095,120]
[357542343,1744131381548,500.0,0.00061095,120]
[357542344,1744131382147,500.0,0.00061095,120]
[357542345,1744131382741,500.0,0.00061095,120]
[357542346,1744131383337,500.0,0.00061095,120]
[357542347,1744131383915,500.0,0.00061095,120]
[357542348,1744131384563,500.0,0.00061095,120]
[357542349,1744131385194,500.0,0.00061095,120]
[357542350,1744131385805,500.0,0.00061095,120]
[357542351,1744131638463,279.18996,0.00027,120]
[357542352,1744131818611,2000.0,0.00027669,30]
[357542353,1744132000264,527.0,0.00027,90]
[357542357,1744132047893,1249.94,0.00043366,30]
[357542358,1744132177032,150.0,0.00043368,30]
[357542364,1744132231933,-300.0,0.00021,2]
[357542365,1744132231943,-350.0,0.00023,2]
[357542366,1744132231952,-250.0,0.000231,2]
[357542367,1744132231962,-150.0,0.00024799,2]
[357542368,1744132231971,-89.45182614,0.00026169,2]
[357542369,1744132232039,-60.54817386,0.00026169,2]
[357542370,1744132232052,-250.0,0.00026493,2]
[357542371,1744132232062,-1024.94,0.00026598,2]
[357542372,1744132232072,-2525.06182614,0.00026752,2]
[357542373,1744132232099,-2603.61639723,0.00026752,2]
[357542441,1744132238002,-272.77477956,0.00026752,2]
[357542443,1744132238217,-453.05,0.00026752,2]
[357542473,1744132238713,271.22109,0.00027,120]
[357542507,1744132240172,-18045.49699707,0.00026752,2]
[357542508,1744132240182,-1000.0,0.00026793,2]
[357542509,1744132240191,-292.76,0.00026849,2]
[357542510,1744132240201,-3847.00023985,0.0002715,2]
[357542511,1744132240211,-999.99,0.0002715,2]
[357542512,1744132240221,-3266.88,0.0002715,2]
[357542513,1744132240230,-30547.62276309,0.0002715,10]
[357542514,1744132240331,-435.38172399,0.0002715,10]
[357542543,1744132244488,-581.33,0.00026783,2]
[357542544,1744132244498,-3797.65551292,0.0002715,10]
[357542545,1744132244507,-299.99,0.0002715,12]
[357542546,1744132244518,-9999.99,0.0002715,2]
[357542547,1744132244528,-3726.267,0.00027197,2]
[357542548,1744132244538,-4008.7,0.00027297,2]
[357542549,1744132244548,-7998.65,0.00027297,2]
[357542550,1744132244558,-1459.79,0.00027297,2]
[357542551,1744132244567,-3031.1,0.00027297,2]
[357542552,1744132244577,-29558.52153043,0.00027297,2]
[357542553,1744132244589,-2401.33151684,0.00027297,2]
[357542557,1744132244921,-269.9985,0.00027297,2]
[357542570,1744132245996,-2703.25320477,0.00027297,2]
[357542571,1744132246113,-373.02653224,0.00027297,2]
[357542572,1744132246166,-298.17458583,0.00027297,2]
[357542573,1744132246180,-4136.79391461,0.00027297,2]
[357542582,1744132579584,176.0,0.00043373,30]
[357542585,1744132898855,292.32420338,0.00027297,39]
[357542586,1744133027640,250.0,0.00019,2]
[357542587,1744133137125,-73519.23004074,0.0002,2]
[357542588,1744133137146,-300.0,0.00021,2]
[357542589,1744133137168,-337.16,0.00025022,2]
[357542590,1744133137190,-150.47,0.00026849,2]
[357542591,1744133137211,-180.22,0.00026862,2]
[357542592,1744133137233,-200.0,0.00026867,7]
[357542593,1744133137255,-250.0,0.00026902,2]
[357542594,1744133137275,-9608.52945738,0.00027197,2]
[357542595,1744133151244,-17031.73364262,0.00027197,2]
[357542596,1744133151267,-337.16,0.00027286,2]
[357542597,1744133151289,-294.87421659,0.00027287,2]
[357542598,1744133151311,-34237.54792077,0.00027297,2]
[357542599,1744133216090,-572.41679793,0.00027186,2]
[357542600,1744133216112,-49.00529451,0.00027297,2]
[357542601,1744133216133,-789.43,0.00027297,2]
[357542602,1744133216155,-169.21,0.00027397,2]
[357542603,1744133216176,-500.0,0.0002757,2]
[357542604,1744133216195,-165.13077315,0.00027692,2]
[357542605,1744133216216,-2180.70240127,0.00027692,2]
[357542606,1744133237087,-5000.00104112,0.00024,5]
[357542607,1744133237109,-2389.24351199,0.00027692,2]
[357542608,1744133237130,-8592.94511676,0.00028093,2]
[357542609,1744133237149,-518.6912,0.00028117,2]
[357542610,1744133237173,-2404.65226874,0.0002945,2]
[357542611,1744133237195,-337.16,0.0002955,2]
[357542612,1744133237215,-150.0,0.00030683,2]
[357542613,1744133237236,-1000.0,0.00030818,2]
[357542614,1744133237264,-21614.88025823,0.00031002,2]
[357542615,1744133242103,-2285.11974177,0.00031002,2]
[357542616,1744133242123,-2000.0,0.00031252,2]
[357542617,1744133242144,-337.16,0.00031814,2]
[357542618,1744133242167,-500.0,0.00031971,5]
[357542619,1744133242189,-150.0,0.00032053,2]
[357542620,1744133242209,-279.18996,0.000323,120]
[357542621,1744133242231,-292.76,0.00032646,2]
[357542622,1744133242252,-150.47,0.00032646,2]
[357542623,1744133242273,-1168.89185408,0.00032803,2]
[357542624,1744133247148,-1235.7604146,0.00032803,2]
[357542625,1744133247170,-169.21,0.00032877,2]
[357542626,1744133247197,-150.0,0.00033423,2]
[357542627,1744133247217,-337.16,0.00034078,2]
[357542628,1744133247239,-1123.172,0.00034434,2]
[357542629,1744133247260,-841.246,0.00034434,2]
[357542630,1744133247281,-1120.0,0.00034434,2]
[357542631,1744133247303,-1000.0,0.0003467,2]
[357542632,1744133247325,-500.0,0.00034721,5]
[357542633,1744133247345,-500.0,0.00034721,5]
[357542634,1744133247366,-150.0,0.00034793,2]
[357542635,1744133247387,-159.29,0.00035,2]
[357542636,1744133247408,-159.29,0.00035,2]
[357542637,1744133247432,-735.01948623,0.00035127,30]
[357542638,1744133247457,-500.0,0.000355,2]
[357542639,1744133247480,-1747.414,0.00035566,42]
[357542640,1744133247502,-40015.93,0.000356,2]
[357542641,1744133247525,-357.32,0.00035671,120]
[357542642,1744133247546,-1000.0,0.00036056,2]
[357542643,1744133247568,-1255.6679,0.00036056,2]
[357542644,1744133247590,-2404.65226868,0.00036156,2]
[357542645,1744133247611,-150.0,0.00036163,2]
[357542646,1744133247632,-40015.93,0.000362,2]
[357542647,1744133247652,-337.16,0.00036342,2]
[357542648,1744133247678,-5121.84611689,0.000369,2]
[357542649,1744133250316,-50860.36698041,0.000369,2]
[357542650,1744133250338,-40015.93,0.000369,2]
[357542651,1744133250359,-441.88364205,0.00037,2]
[357542652,1744133250380,-1120.0,0.00037434,2]
[357542653,1744133250401,-1000.0,0.00037451,5]
[357542654,1744133250423,-581.33,0.00037496,2]
[357542655,1744133250444,-150.0,0.00037533,2]
[357542656,1744133250464,-279.18996,0.000376,120]
[357542657,1744133250485,-180.22,0.00038095,2]
[357542658,1744133250505,-500.0,0.00038373,5]
[357542659,1744133250526,-292.76,0.00038443,2]
[357542660,1744133250546,-150.47,0.00038443,2]
[357542661,1744133250567,-1000.0,0.00038522,2]
[357542662,1744133250587,-337.16,0.00038606,2]
[357542663,1744133250608,-150.0,0.00038903,2]
[357542664,1744133250630,-2404.65226868,0.00039509,2]
[357542665,1744133250650,-10637.6377978,0.0003999,2]
[357542666,1744133250673,-3427.73575153,0.0004,10]
[357542667,1744133250693,-20090.06471509,0.0004,3]
[357542668,1744133250714,-357.32,0.00040149,120]
[357542669,1744133250735,-516.03222908,0.000402,5]
[357542670,1744133250756,-549.08232006,0.000402,5]
[357542671,1744133250777,-150.0,0.00040272,2]
[357542672,1744133250803,-1120.0,0.00040434,2]
[357542673,1744133250824,-337.16,0.0004087,2]
[357542674,1744133250848,-164.53539892,0.00040996,15]
[357542675,1744133250869,-1706.0,0.00041,5]
[357542676,1744133250890,-40015.93,0.00041,2]
[357542677,1744133250911,-166.0,0.00041,14]
[357542678,1744133250932,-777.44879042,0.00041,30]
[357542679,1744133250955,-8494.36771884,0.00041,5]
[357542680,1744133250977,-150.0,0.00041096,2]
[357542681,1744133250998,-2000.0,0.00041096,13]
[357542682,1744133251019,-2000.0,0.00041096,13]
[357542683,1744133251040,-2000.0,0.00041096,13]
[357542684,1744133251062,-2000.0,0.00041096,13]
[357542685,1744133251087,-2000.0,0.00041096,13]
[357542686,1744133251107,-2000.0,0.00041096,13]
[357542687,1744133251129,-2046.0,0.00041096,13]
[357542688,1744133251152,-503.60849091,0.00041625,10]
[357542689,1744133251175,-150.0,0.00041642,120]
[357542690,1744133251198,-520.0,0.00042,120]
[357542691,1744133251219,-64519.72119615,0.00042,2]
[357542692,1744133251241,-16441.58738161,0.00042,4]
[357542694,1744133327080,989.23075135,0.000151,2]
[357542695,1744133327109,194.43924765,0.000151,2]
[357542714,1744133432198,-291.72,0.0002,4]
[357542715,1744133432210,-33876.12520288,0.0002,4]
[357542716,1744133432221,-7709.4,0.0002,4]
[357542717,1744133432243,-405.56328787,0.0002,4]
[357542718,1744133432270,-7682.0,0.0002,4]
[357542720,1744133432313,-3075.072,0.0002,4]
[357542735,1744133438022,-313.71024467,0.0002,4]
[357542736,1744133438075,-11894.13152235,0.0002,4]
[357542737,1744133438134,-5569.97452503,0.0002,4]
[357542738,1744133438146,-316.31600004,0.0002,4]
[357542739,1744133438262,-14367.13269158,0.0002,4]
[357542740,1744133438272,-801.67432801,0.00024,2]
[357542741,1744133438281,-523.97650876,0.000275,2]
[357542742,1744133438291,-547.10656,0.0003,2]
[357542743,1744133438301,-2999.999999,0.0003,2]
[357542744,1744133438310,-150.0,0.00030135,2]
[357542745,1744133438319,-3499.999999,0.0003121,2]
[357542746,1744133438329,-150.0,0.00031505,2]
[357542747,1744133438339,-500.0,0.0003225,5]
[357542748,1744133438351,-500.0,0.0003225,5]
[357542749,1744133438361,-150.0,0.00032875,2]
[357542751,1744133438370,-150.0,0.00034244,2]
[357542753,1744133438380,-41050.40050734,0.00035,4]
[357542755,1744133438389,-150.0,0.00035614,2]
[357542757,1744133438398,-1120.0,0.00035904,2]
[357542759,1744133438408,-65799.80448067,0.00036,2]
[357542761,1744133438417,-1000.0,0.000369,2]
[357542763,1744133438426,-211.10826586,0.00036984,2]
[357542764,1744133438436,-33931.71637859,0.00037,2]
[357542766,1744133438447,-4405.40100003,0.00037,2]
[357542776,1744133438842,-80299.37097163,0.00037,2]
[357542777,1744133438853,-231.65736669,0.00037729,5]
[357542778,1744133438863,-180.22,0.00039222,2]
[357542779,1744133438873,-7988.77085826,0.0004,2]
[357542780,1744133438883,-776.17854809,0.0004,5]
[357542781,1744133438893,-308.46557002,0.0004,14]
[357542782,1744133438903,-500.0,0.00040356,2]
[357542783,1744133438914,-8214.17112782,0.00041,5]
[357542784,1744133438923,-1013.0,0.00041919,25]
[357542785,1744133438933,-99542.87763911,0.00042,4]
[357542786,1744133438943,-582.0,0.000421,3]
[357542787,1744133438953,-150.0,0.00042136,120]
[357542788,1744133438963,-150.0,0.00042177,2]
[357542789,1744133438973,-1000.0,0.00042374,2]
[357542790,1744133438983,-159.29,0.00042374,2]
[357542791,1744133438992,-1989.82635811,0.00042395,14]
[357542792,1744133439003,-901.79959999,0.00042499,5]
[357542793,1744133439012,-403.41359907,0.0004287,3]
[357542794,1744133439022,-154.69171759,0.0004288,2]
[357542795,1744133439032,-279.18996,0.000429,120]
[357542796,1744133439042,-378.17,0.000429,2]
[357542797,1744133439051,-300.0,0.000429,15]
[357542798,1744133439061,-700.0,0.00042941,16]
[357542799,1744133439071,-700.0,0.00042941,16]
[357542800,1744133439082,-700.0,0.00042941,16]
[357542801,1744133439092,-700.0,0.00042941,16]
[357542802,1744133439106,-700.0,0.00042941,16]
[357542803,1744133439116,-700.0,0.00042942,16]
[357542804,1744133439126,-700.0,0.00042942,16]
[357542805,1744133439135,-700.0,0.00042942,16]
[357542806,1744133439145,-700.0,0.00042942,16]
[357542807,1744133439155,-700.0,0.00042942,16]
[357542808,1744133439165,-1380.85,0.00043013,5]
[357542809,1744133439174,-337.16,0.00043133,2]
[357542810,1744133439184,-166.0,0.00043151,90]
[357542811,1744133439194,-150.0,0.00043259,2]
[357542812,1744133439203,-150.0,0.00043315,120]
[357542813,1744133439213,-150.0,0.0004334,120]
[357542814,1744133439222,-400.0,0.0004337,3]
[357542815,1744133439232,-500.0,0.00043373,10]
[357542816,1744133439242,-500.0,0.00043373,10]
[357542817,1744133439251,-500.0,0.00043373,10]
[357542818,1744133439261,-500.0,0.00043373,10]
[357542819,1744133439271,-503.45970058,0.00043373,10]
[357542820,1744133439281,-159.75984,0.00043373,10]
[357542821,1744133439290,-544.69933015,0.00043373,10]
[357542822,1744133439299,-620.06654318,0.00043373,10]
[357542823,1744133439308,-501.98251027,0.00043373,10]
[357542824,1744133439318,-500.0,0.00043373,10]
[357542825,1744133439327,-507.54888109,0.00043373,10]
[357542826,1744133439337,-471.25576975,0.00043373,10]
[357542827,1744133439349,-502.81964176,0.00043373,10]
[357542828,1744133439358,-500.0,0.00043373,10]
[357542829,1744133439367,-11505.6545474,0.00043376,3]
[357542830,1744133439376,-151.53,0.00043385,2]
[357542831,1744133439386,-151.53,0.00043385,2]
[357542832,1744133439395,-500.0,0.00043394,31]
[357542833,1744133439405,-500.0,0.00043394,31]
[357542834,1744133439414,-500.0,0.00043394,31]
[357542835,1744133439424,-500.0,0.00043394,31]
[357542836,1744133439433,-500.0,0.00043394,31]
[357542837,1744133439443,-500.0,0.00043394,31]
[357542838,1744133439452,-500.0,0.00043394,31]
[357542839,1744133439462,-500.0,0.00043394,31]
[357542840,1744133439471,-500.0,0.00043394,31]
[357542841,1744133439480,-500.0,0.00043394,31]
[357542842,1744133439490,-500.0,0.00043394,31]
[357542843,1744133439499,-500.0,0.00043394,31]
[357542844,1744133439508,-267.5614158,0.00043394,31]
[357542845,1744133439518,-50383.99178757,0.00043395,2]
[357542846,1744133439528,-209.0,0.00043395,15]
[357542847,1744133439538,-93044.50575563,0.00043395,2]
[357542848,1744133439547,-1486.48230582,0.00043395,10]
[357542849,1744133439556,-32339.5322371,0.00043395,2]
[357542850,1744133439565,-702.16725136,0.00043395,10]
[357542851,1744133439575,-218.60361306,0.00043395,7]
[357542852,1744133439585,-1517.28029062,0.00043395,2]
[357542853,1744133439604,-71902.58576692,0.00043395,2]
[357542854,1744133439614,-2231.80182628,0.00043395,10]
[357542855,1744133439624,-6001.4551644,0.00043395,2]
[357542856,1744133439634,-2262.25391629,0.00043395,10]
[357542857,1744133439645,-1000.0,0.00043395,10]
[357542858,1744133439655,-21684.63865152,0.00043395,2]
[357542859,1744133439670,-919.75157161,0.00043395,2]
[357542860,1744133439692,-413.70933411,0.00043395,2]
[357542861,1744133439705,-283.97531689,0.00043395,2]
[357542863,1744133440329,-199.23875302,0.00043394,15]
[357542864,1744133440343,-214.48411212,0.00043394,31]
[357542865,1744133440356,-864.98657462,0.00043395,2]
[357542866,1744133440372,-11680.26257136,0.00043395,2]
[357542867,1744133440382,-5545.63778904,0.00043395,2]
[357542868,1744133440394,-5283.16800028,0.00043395,2]
[357542869,1744133440495,-11914.2170245,0.00043395,2]
[357542870,1744133440506,-9244.25015135,0.00043395,10]
[357542871,1744133440516,-500.0,0.00043395,10]
[357542872,1744133440527,-364.49408904,0.00043395,7]
[357542873,1744133440536,-273.25573049,0.00043395,10]
[357542874,1744133440547,-1001.0834037,0.00043395,5]
[357542875,1744133440556,-13784.98348556,0.00043395,5]
[357542876,1744133440565,-799.99999901,0.00043395,5]
[357542877,1744133440574,-8719.69544129,0.00043395,2]
[357542878,1744133440583,-998.94807614,0.00043395,2]
[357542879,1744133440593,-297.98881993,0.00043395,2]
[357542880,1744133440606,-3213.63711727,0.00043648,2]
[357542881,1744133440616,-2112.39518152,0.0004367,5]
[357542882,1744133440626,-304.50670281,0.00043836,2]
[357542884,1744133440635,-870.00259318,0.00043852,5]
[357542885,1744133440645,-2341.32470065,0.00043938,2]
[357542886,1744133440655,-292.76,0.00044239,2]
[357542887,1744133440665,-150.47,0.00044239,2]
[357542888,1744133440674,-150.0,0.0004434,2]
[357542889,1744133440685,-400.0,0.0004437,3]
[357542891,1744133440694,-2000.0,0.000444,2]
[357542892,1744133440704,-357.32,0.00044628,120]
[357542893,1744133440714,-702.0,0.000447,2]
[357542894,1744133440724,-2000.0,0.00044748,8]
[357542895,1744133440733,-151.0,0.00045,120]
[357542897,1744133440743,-1000.0,0.00045,120]
[357542898,1744133440753,-604.68,0.00045,30]
[357542899,1744133440762,-2321.26549537,0.00045,14]
[357542900,1744133440772,-249.999999,0.00045,2]
[357542901,1744133440782,-400.0,0.0004517,3]
[357542902,1744133440792,-401.85727803,0.0004517,3]
[357542903,1744133440802,-337.16,0.00045397,2]
[357542904,1744133440811,-150.0,0.00045422,2]
[357542905,1744133440821,-500.0,0.00045835,120]
[357542906,1744133440831,-500.0,0.00045835,120]
[357542907,1744133440846,-628.0,0.00045835,120]
[357542908,1744133440855,-400.0,0.0004597,3]
[357542909,1744133440866,-300.0,0.0004597,3]
[357542910,1744133440876,-11505.6545474,0.0004597,3]
[357542911,1744133440887,-1032.71632071,0.00045989,3]
[357542912,1744133440908,-384.62424,0.00045989,3]
[357542925,1744133443199,-250.0,0.00028,2]
[357542926,1744133443208,-230.97227184,0.00045989,3]
[357542927,1744133443309,-21362.99626225,0.00045989,3]
[357542928,1744133443318,-20451.53093711,0.00045999,2]
[357542929,1744133443405,-34498.95906289,0.00045999,2]
[357542930,1744133443415,-1000.0,0.00046,120]
[357542931,1744133443424,-1000.0,0.00046226,2]
[357542932,1744133443434,-11505.6545474,0.00046377,3]
[357542933,1744133443443,-896.06090554,0.00046387,2]
[357542934,1744133443452,-500.0,0.00046395,2]
[357542935,1744133443462,-500.0,0.00046395,2]
[357542936,1744133443471,-500.0,0.00046395,2]
[357542937,1744133443481,-500.0,0.00046395,2]
[357542938,1744133443490,-500.0,0.00046395,2]
[357542939,1744133443500,-500.0,0.00046395,2]
[357542940,1744133443509,-150.0,0.00046503,2]
[357542941,1744133443519,-1360.4881041,0.000468,10]
[357542942,1744133443528,-150.0,0.00046817,120]
[357542943,1744133443537,-11505.6545474,0.00046838,3]
[357542944,1744133443551,-187.44393641,0.00046848,30]
[357542945,1744133443561,-200.0,0.00046849,2]
[357542946,1744133443570,-200.0,0.00046849,2]
[357542947,1744133443580,-200.0,0.00046849,2]
[357542948,1744133443589,-200.0,0.00046849,2]
[357542949,1744133443599,-200.0,0.00046849,2]
[357542950,1744133443608,-200.0,0.00046849,2]
[357542951,1744133443618,-200.0,0.00046849,2]
[357542952,1744133443627,-200.0,0.00046849,2]
[357542953,1744133443637,-200.0,0.00046849,2]
[357542954,1744133443646,-200.0,0.00046849,2]
[357542955,1744133443656,-200.0,0.00046849,2]
[357542956,1744133443666,-200.0,0.00046849,2]
[357542957,1744133443675,-200.0,0.00046849,2]
[357542958,1744133443685,-200.0,0.00046849,2]
[357542959,1744133443695,-200.0,0.00046849,2]
[357542960,1744133443705,-200.0,0.00046849,2]
[357542961,1744133443714,-200.0,0.00046849,2]
[357542962,1744133443723,-200.0,0.00046849,2]
[357542963,1744133443732,-200.0,0.00046849,2]
[357542964,1744133443742,-200.0,0.00046849,2]
[357542965,1744133443752,-200.0,0.00046849,2]
[357542966,1744133443762,-200.0,0.00046849,2]
[357542969,1744133443771,-200.0,0.00046849,2]
[357542972,1744133443781,-200.0,0.00046849,2]
[357542973,1744133443790,-200.0,0.00046849,2]
[357542974,1744133443799,-200.0,0.00046849,2]
[357542975,1744133443809,-200.0,0.00046849,2]
[357542976,1744133443818,-200.0,0.00046849,2]
[357542977,1744133443827,-200.0,0.00046849,2]
[357542979,1744133443837,-200.0,0.00046849,2]
[357542981,1744133443848,-200.0,0.00046849,2]
[357542983,1744133443860,-200.0,0.00046849,2]
[357542986,1744133443870,-200.0,0.00046849,2]
[357542988,1744133443880,-200.0,0.00046849,2]
[357542990,1744133443889,-276.0,0.00046849,2]
[357542992,1744133443900,-284.0,0.00046849,13]
[357542994,1744133443910,-2000.0,0.000471,2]
[357542996,1744133443920,-234.0885,0.00047257,30]
[357542997,1744133443931,-2462.0,0.00047469,7]
[357542998,1744133443940,-687.07384335,0.000475,30]
[357542999,1744133443950,-150.0,0.00047585,2]
[357543000,1744133443959,-9364.11463763,0.0004759,3]
[357543001,1744133443968,-5237.19913423,0.000476,2]
[357543002,1744133443978,-337.16,0.00047661,2]
[357543003,1744133443987,-151.53,0.00047757,2]
[357543004,1744133443997,-9651.55913495,0.00047767,3]
[357543005,1744133444088,-1854.09541245,0.00047767,3]
[357543006,1744133444099,-7313.51674742,0.00047767,3]
[357543007,1744133444110,-2050.59789021,0.00047767,3]
[357543008,1744133444119,-2764.80211325,0.00047777,2]
[357543009,1744133444130,-2598.54541699,0.00047777,2]
[357543010,1744133444422,-4479.78630202,0.00047777,2]
[357543011,1744133444438,-5857.31981544,0.00047777,2]
[357543012,1744133444447,-700.0,0.000479,17]
[357543013,1744133444457,-9364.11463763,0.0004799,4]
[357543014,1744133444466,-400.0,0.00048,120]
[357543015,1744133444476,-697.23826583,0.00048,2]
[357543022,1744133446252,-857.75656648,0.00048,2]
[357543023,1744133446525,-13701.61877593,0.00048,2]
[357543024,1744133446537,-279.18996,0.000482,120]
[357543025,1744133446552,-150.0,0.00048388,120]
[357543026,1744133446570,-9364.11463763,0.0004848,4]
[357543027,1744133446580,-11505.6545474,0.0004849,4]
[357543028,1744133446589,-1000.0,0.000485,30]
[357543029,1744133446598,-150.0,0.00048666,2]
[357543030,1744133446611,-1134.52,0.000487,7]
[357543032,1744133446624,-4025.0,0.000488,5]
[357543034,1744133446634,-1000.0,0.00048852,10]
[357543035,1744133446644,-1000.0,0.00048852,10]
[357543036,1744133446654,-396.03912502,0.00048852,10]
[357543037,1744133446664,-1000.0,0.00048852,10]
[357543038,1744133446675,-500.0,0.00048852,10]
[357543039,1744133446685,-5246.0,0.00049,2]
[357543040,1744133446694,-853.72020075,0.00049,120]
[357543041,1744133446703,-10207.97985639,0.00049,2]
[357543042,1744133446713,-150.0,0.000491,10]
[357543043,1744133446723,-500.0,0.000491,10]
[357543045,1744133446732,-357.32,0.00049106,120]
[357543046,1744133446741,-9364.11463763,0.0004928,4]
[357543047,1744133446751,-11505.6545474,0.0004929,4]
[357543048,1744133446761,-360.1887825,0.00049295,7]
[357543049,1744133446770,-11505.6545474,0.00049305,4]
[357543050,1744133446780,-9364.11463763,0.00049305,4]
[357543052,1744133446790,-9364.11463763,0.0004931,4]
[357543054,1744133446799,-350.0,0.00049315,30]
[357543056,1744133446809,-700.0,0.00049315,26]
[357543058,1744133446819,-700.0,0.00049315,26]
[357543060,1744133446828,-1000.0,0.00049315,15]
[357543062,1744133446838,-1000.0,0.00049315,15]
[357543063,1744133446848,-1001.0,0.00049315,15]
[357543064,1744133446863,-150.0,0.00049407,120]
[357543065,1744133446872,-5834.89759597,0.000495,7]
[357543066,1744133446882,-11505.6545474,0.0004958,4]
[357543067,1744133446891,-9364.11463763,0.0004958,4]
[357543068,1744133446902,-589.88532342,0.0004959,7]
[357543069,1744133446912,-4556.06298211,0.0004959,16]
[357543070,1744133446922,-353.74894923,0.00049648,10]
[357543071,1744133446932,-162.70196799,0.00049648,26]
[357543072,1744133446943,-150.0,0.00049748,120]
[357543073,1744133446953,-195.37,0.00049767,30]
[357543074,1744133446963,-150.0,0.00049767,30]
[357543075,1744133446972,-202.91,0.00049767,30]
[357543076,1744133446983,-445.0,0.00049767,30]
[357543077,1744133446993,-445.0,0.00049767,30]
[357543078,1744133447003,-150.0,0.00049767,30]
[357543079,1744133447013,-150.0,0.00049767,30]
[357543080,1744133447022,-150.0,0.00049767,30]
[357543081,1744133447032,-169.56,0.00049767,30]
[357543082,1744133447042,-445.0,0.00049767,30]
[357543083,1744133447051,-150.0,0.00049767,30]
[357543084,1744133447061,-150.0,0.00049767,30]
[357543085,1744133447071,-150.0,0.00049767,30]
[357543086,1744133447081,-445.0,0.00049767,30]
[357543087,1744133447091,-150.0,0.00049767,30]
[357543088,1744133447103,-150.0,0.00049767,30]
[357543089,1744133447381,-150.0,0.00049767,30]
[357543090,1744133447392,-445.0,0.00049767,30]
[357543091,1744133447402,-150.0,0.00049767,30]
[357543092,1744133447412,-2000.0,0.00049832,8]
[357543093,1744133447421,-2000.0,0.000499,2]
[357543094,1744133447431,-337.16,0.00049925,2]
[357543095,1744133447441,-9364.11463763,0.00049969,4]
[357543096,1744133447451,-11505.6545474,0.00049974,4]
[357543097,1744133447461,-11505.6545474,0.00049979,4]
[357543098,1744133447470,-7834.17837573,0.0004998,4]
[357543099,1744133447514,-709.56909431,0.0004998,4]
[357543100,1744133447529,-820.36716759,0.0004998,4]
[357543101,1744133447539,-0.73285074,0.0004998,120]
[357543102,1744133447689,-150.79714926,0.0004998,120]
[357543103,1744133447699,-11505.6545474,0.0004999,4]
[357543104,1744133447708,-2544.62707603,0.0004999,4]
[357543105,1744133447726,-770.0,0.0004999,4]
[357543131,1744134632186,-159.38,0.00026849,2]
[357543132,1744134632197,-148.928,0.000369,2]
[357543133,1744134632243,-1371.4725,0.000369,2]
[357543134,1744134632254,-411.74297905,0.00037235,2]